fUST/lending_fUST_20240917
["ID","MTS","AMOUNT","RATE_DAILY","PERIOD"]
[338336947,1726511446875,-1090.23973334,0.00018948,2]
[338336948,1726511446922,-867.51018295,0.00018948,2]
[338336949,1726511446934,-222.72955039,0.00018948,2]
[338336950,1726511446945,-329.4402698,0.00018948,2]
[338336951,1726511446961,-595.5,0.00018948,2]
[338336953,1726511603919,176.373406,0.00013699,2]
[338337012,1726512106302,183.143289,0.00013699,2]
[338337015,1726512437595,-301.16893679,0.00017258,2]
[338337017,1726512550145,-424.63242005,0.00017258,2]
[338337018,1726512550454,-300.0,0.00017258,2]
[338337019,1726512550480,-300.0,0.00017258,2]
[338337020,1726512550502,-725.80135667,0.00017258,2]
[338337021,1726512550523,-725.80135667,0.00017258,2]
[338337022,1726512550544,-725.80135667,0.00017258,2]
[338337023,1726512550565,-725.80135667,0.00017258,2]
[338337024,1726512550591,-725.80135667,0.00017258,2]
[338337025,1726512550611,-725.80135667,0.00017258,2]
[338337026,1726512550632,-725.80135667,0.00017258,2]
[338337027,1726512550653,-725.80135667,0.00017258,2]
[338337028,1726512550678,-725.80135667,0.00017258,2]
[338337029,1726512550702,-725.80135667,0.00017259,2]
[338337030,1726512550726,-725.80135667,0.00017259,2]
[338337031,1726512550750,-725.80135667,0.00017259,2]
[338337032,1726512550773,-725.80135667,0.00017259,2]
[338337033,1726512550794,-725.80135667,0.00017259,2]
[338337034,1726512550820,-725.80135667,0.00017259,2]
[338337035,1726512550847,-725.80135667,0.00017259,2]
[338337036,1726512550868,-725.80135667,0.00017259,2]
[338337037,1726512550890,-3416.74458158,0.00017359,2]
[338337038,1726512559101,-184.22402436,0.00017359,2]
[338337040,1726512570184,-762.57640677,0.00017359,2]
[338337164,1726512638092,-300.0,0.00017358,2]
[338337166,1726512638102,-300.0,0.00017358,2]
[338337168,1726512638112,-20536.45498729,0.00017359,2]
[338337169,1726512638121,-165.367675,0.0001749,2]
[338337170,1726512638131,-168.590203,0.00017594,2]
[338337171,1726512638141,-1000.0,0.00018,18]
[338337172,1726512638151,-10956.0,0.00018479,2]
[338337173,1726512638160,-2620.7115501,0.000186,2]
[338337174,1726512638169,-162.17885149,0.000187,2]
[338337175,1726512638179,-162.17885148,0.0001877,2]
[338337176,1726512638191,-3000.0,0.000188,2]
[338337177,1726512638202,-3000.0,0.0001881,2]
[338337178,1726512638211,-3000.0,0.0001882,2]
[338337179,1726512638221,-3000.0,0.0001883,2]
[338337180,1726512638231,-263.55681637,0.0001883,2]
[338337181,1726512638240,-3000.0,0.0001884,2]
[338337182,1726512638250,-162.17885148,0.0001884,2]
[338337183,1726512638260,-263.55681637,0.00018845,2]
[338337184,1726512638269,-3000.0,0.0001885,2]
[338337185,1726512638279,-3000.0,0.0001886,2]
[338337186,1726512638289,-263.55681637,0.0001886,2]
[338337187,1726512638298,-3000.0,0.0001887,2]
[338337188,1726512638307,-263.55681637,0.00018875,2]
[338337189,1726512638317,-3000.0,0.0001888,2]
[338337190,1726512638327,-3000.0,0.0001889,2]
[338337191,1726512638337,-263.55681637,0.0001889,2]
[338337192,1726512638346,-1000.0,0.00018897,2]
[338337193,1726512638356,-3000.0,0.000189,2]
[338337194,1726512638365,-3000.0,0.0001891,2]
[338337195,1726512638375,-3000.0,0.0001892,2]
[338337196,1726512638385,-233.18190538,0.00018928,2]
[338337197,1726512638395,-500.0,0.00018928,2]
[338337198,1726512638404,-500.0,0.00018928,2]
[338337199,1726512638414,-500.0,0.00018928,2]
[338337200,1726512638424,-500.0,0.00018928,2]
[338337201,1726512638433,-500.0,0.00018928,2]
[338337202,1726512638443,-500.0,0.00018928,2]
[338337203,1726512638453,-500.0,0.00018928,2]
[338337204,1726512638462,-500.0,0.00018928,2]
[338337205,1726512638471,-500.0,0.00018928,2]
[338337206,1726512638480,-500.0,0.00018928,2]
[338337207,1726512638490,-500.0,0.00018928,2]
[338337208,1726512638501,-500.0,0.00018928,2]
[338337209,1726512638511,-500.0,0.00018928,2]
[338337210,1726512638520,-632.24485914,0.00018928,2]
[338337211,1726512638530,-500.0,0.00018928,2]
[338337212,1726512638540,-500.0,0.00018928,2]
[338337213,1726512638550,-500.0,0.00018928,2]
[338337214,1726512638560,-500.0,0.00018928,2]
[338337215,1726512638569,-500.0,0.00018928,2]
[338337216,1726512638579,-500.0,0.00018928,2]
[338337217,1726512638588,-500.0,0.00018928,2]
[338337218,1726512638597,-500.0,0.00018928,2]
[338337219,1726512638607,-500.0,0.00018928,2]
[338337220,1726512638616,-500.0,0.00018928,2]
[338337221,1726512638627,-3000.0,0.0001893,2]
[338337222,1726512638637,-76269.1491711,0.0001893,3]
[338337223,1726512638648,-61236.0533362,0.0001893,3]
[338337224,1726512638658,-3000.0,0.0001894,2]
[338337225,1726512638668,-497.40713359,0.00018948,2]
[338337226,1726512638677,-3000.0,0.0001895,2]
[338337227,1726512638687,-420.0,0.00018952,2]
[338337228,1726512638696,-3000.0,0.0001896,2]
[338337229,1726512638706,-3000.0,0.0001897,2]
[338337230,1726512638716,-500.0,0.00018973,2]
[338337231,1726512638727,-500.0,0.00018973,2]
[338337232,1726512638737,-500.0,0.00018973,2]
[338337233,1726512638750,-3000.0,0.0001898,2]
[338337234,1726512638759,-595.65077554,0.00018983,2]
[338337235,1726512638769,-500.0,0.00018983,2]
[338337236,1726512638779,-500.0,0.00018983,2]
[338337237,1726512638790,-500.0,0.00018983,2]
[338337238,1726512638800,-607.70426427,0.00018983,2]
[338337239,1726512638810,-500.0,0.00018983,2]
[338337240,1726512638819,-607.70426427,0.00018983,2]
[338337241,1726512638829,-500.0,0.00018983,2]
[338337242,1726512638840,-607.70426427,0.00018983,2]
[338337243,1726512638849,-500.0,0.00018983,2]
[338337244,1726512638859,-607.70426427,0.00018983,2]
[338337245,1726512638868,-500.0,0.00018983,2]
[338337246,1726512638878,-241.68614596,0.00018983,2]
[338337247,1726512638887,-500.0,0.00018983,2]
[338337248,1726512638899,-607.70426427,0.00018983,2]
[338337249,1726512638908,-607.70426427,0.00018983,2]
[338337250,1726512638918,-170.29478797,0.00018983,2]
[338337251,1726512638927,-470.67135519,0.00018983,2]
[338337252,1726512639193,-500.0,0.00018983,2]
[338337253,1726512639203,-607.70426427,0.00018983,2]
[338337254,1726512639213,-500.0,0.00018983,2]
[338337255,1726512639222,-500.0,0.00018983,2]
[338337256,1726512639233,-607.70426427,0.00018983,2]
[338337257,1726512639243,-500.0,0.00018983,2]
[338337258,1726512639252,-607.70426427,0.00018983,2]
[338337259,1726512639261,-607.70426427,0.00018983,2]
[338337260,1726512639273,-607.70426427,0.00018983,2]
[338337261,1726512639283,-607.70426427,0.00018983,2]
[338337262,1726512639292,-607.70426427,0.00018983,2]
[338337263,1726512639302,-607.70426427,0.00018983,2]
[338337264,1726512639311,-607.70426427,0.00018983,2]
[338337265,1726512639320,-607.70426427,0.00018983,2]
[338337266,1726512639330,-607.70426427,0.00018983,2]
[338337267,1726512639339,-152538.298342,0.00018985,3]
[338337268,1726512639349,-122472.106672,0.00018985,3]
[338337269,1726512639358,-183.64233472,0.00018985,2]
[338337270,1726512639367,-2119.97884329,0.00018987,5]
[338337271,1726512639377,-152538.298342,0.00018987,3]
[338337272,1726512639386,-118713.09464188,0.00018987,3]
[338337302,1726512640017,-32915.16352444,0.00018987,3]
[338337336,1726512642847,-1075.48864695,0.00018987,3]
[338337340,1726512642876,-311.69803547,0.00018987,3]
[338337343,1726512642888,-7416.12424416,0.00018987,3]
[338337345,1726512642904,-23276.5909161,0.00018987,3]
[338337347,1726512642914,-3000.0,0.0001899,2]
[338337350,1726512642924,-46367.82944917,0.00019,5]
[338337352,1726512642934,-1000.0,0.00019,19]
[338337354,1726512642944,-3000.0,0.00019,2]
[338337356,1726512642954,-12637.65072746,0.00019,2]
[338337371,1726512643093,189.657564,0.00013699,2]
[338337384,1726512646025,-592.51165767,0.00018983,2]
[338337385,1726512646034,-592.51165767,0.00018983,2]
[338337386,1726512646043,-592.51165767,0.00018983,2]
[338337387,1726512646052,-592.51165767,0.00018983,2]
[338337388,1726512646061,-592.51165767,0.00018983,2]
[338337389,1726512646070,-592.51165767,0.00018983,2]
[338337390,1726512646079,-266.34436394,0.00018983,2]
[338337391,1726512646301,-326.16729373,0.00018983,2]
[338337392,1726512646311,-592.51165767,0.00018983,2]
[338337393,1726512646320,-592.51165767,0.00018983,2]
[338337394,1726512646331,-592.51165767,0.00018983,2]
[338337395,1726512646341,-1189.53702641,0.00019,2]
[338337396,1726512646354,-42569.89224613,0.00019,2]
[338337397,1726512646363,-3000.0,0.0001901,2]
[338337398,1726512646372,-3000.0,0.0001902,2]
[338337399,1726512646382,-3000.0,0.0001903,2]
[338337400,1726512646391,-3000.0,0.0001904,2]
[338337401,1726512646402,-3000.0,0.0001905,2]
[338337402,1726512646411,-3000.0,0.0001906,2]
[338337403,1726512646421,-3000.0,0.0001907,2]
[338337404,1726512646431,-3000.0,0.0001908,2]
[338337405,1726512646440,-3000.0,0.0001909,2]
[338337406,1726512646450,-420.0,0.00019094,2]
[338337407,1726512646459,-3000.0,0.000191,2]
[338337408,1726512646468,-3000.0,0.0001911,2]
[338337409,1726512646480,-3000.0,0.0001912,2]
[338337410,1726512646490,-3000.0,0.0001913,2]
[338337411,1726512646500,-3000.0,0.0001914,2]
[338337412,1726512646509,-3000.0,0.0001915,2]
[338337413,1726512646518,-3000.0,0.0001916,2]
[338337414,1726512646529,-864.94601535,0.00019164,2]
[338337415,1726512646539,-3000.0,0.0001917,2]
[338337416,1726512646548,-500.0,0.00019173,2]
[338337417,1726512646559,-1000.0,0.00019178,2]
[338337418,1726512646568,-181.075546,0.00019178,2]
[338337419,1726512646578,-202.378633,0.00019178,2]
[338337420,1726512646588,-7514.361439,0.00019178,2]
[338337421,1726512646597,-3000.0,0.0001918,2]
[338337422,1726512646607,-3000.0,0.0001919,2]
[338337423,1726512646616,-160.0,0.00019199,2]
[338337424,1726512646625,-160.0,0.00019199,2]
[338337425,1726512646634,-5462.327997,0.000192,2]
[338337426,1726512646644,-736.474,0.0001926,2]
[338337427,1726512646655,-1492.8953134,0.00019285,2]
[338337428,1726512646664,-198.038,0.0001929,2]
[338337429,1726512646673,-1000.0,0.000193,2]
[338337430,1726512646682,-151.38,0.00019362,2]
[338337431,1726512646692,-524.0,0.00019362,2]
[338337432,1726512646701,-239.0,0.00019362,2]
[338337433,1726512646710,-150.0,0.00019362,2]
[338337434,1726512646719,-283.733,0.00019362,2]
[338337435,1726512646729,-500.0,0.00019377,7]
[338337436,1726512646740,-500.0,0.00019377,7]
[338337437,1726512646749,-222.83,0.00019377,7]
[338337438,1726512646759,-500.0,0.00019452,2]
[338337439,1726512646768,-164.0,0.000195,2]
[338337440,1726512646777,-600.3,0.00019532,2]
[338337441,1726512646787,-600.0,0.00019562,2]
[338337442,1726512646795,-6521.3109894,0.00019669,2]
[338337443,1726512646804,-150.112233,0.000197,2]
[338337444,1726512646814,-914.0,0.000197,2]
[338337445,1726512646823,-500.0,0.00019726,2]
[338337446,1726512646833,-600.3,0.00019749,2]
[338337447,1726512646843,-600.0,0.00019766,2]
[338337448,1726512646852,-1492.8953134,0.00019785,2]
[338337449,1726512646862,-3492.62677717,0.000198,2]
[338337450,1726512646872,-150.112233,0.000198,2]
[338337451,1726512646882,-1000.0,0.000198,2]
[338337452,1726512646891,-21055.27640185,0.00019811,2]
[338337453,1726512646903,-7514.361439,0.00019863,2]
[338337454,1726512646912,-288.2482218,0.00019873,2]
[338337455,1726512646923,-1881.80555976,0.0001988,5]
[338337456,1726512646933,-150.112233,0.000199,2]
[338337457,1726512646943,-150.112233,0.000199,2]
[338337458,1726512646952,-2620.71155006,0.00019921,2]
[338337459,1726512646961,-1000.0,0.00019933,2]
[338337460,1726512646970,-1000.0,0.00019942,2]
[338337461,1726512646979,-1000.0,0.00019963,2]
[338337462,1726512646988,-600.3,0.00019966,2]
[338337463,1726512646998,-600.0,0.00019969,2]
[338337464,1726512647007,-500.0,0.00019973,2]
[338337465,1726512647018,-500.0,0.00019973,2]
[338337466,1726512647027,-500.0,0.00019973,2]
[338337467,1726512647036,-500.0,0.00019973,2]
[338337468,1726512647045,-500.0,0.00019973,2]
[338337469,1726512647055,-190.7389752,0.00019973,2]
[338337470,1726512647064,-500.0,0.00019973,2]
[338337471,1726512647074,-500.0,0.00019973,2]
[338337472,1726512647084,-500.0,0.00019973,2]
[338337473,1726512647094,-475.455696,0.00019973,2]
[338337474,1726512647103,-190.795562,0.0001998,2]
[338337475,1726512647112,-348.02722,0.0001998,2]
[338337476,1726512647121,-348.02722,0.0001998,2]
[338337477,1726512647131,-151.0,0.0001998,2]
[338337478,1726512647140,-151.0,0.0001998,2]
[338337479,1726512647152,-151.0,0.0001998,2]
[338337480,1726512647168,-151.0,0.0001998,2]
[338337481,1726512647178,-151.0,0.0001998,2]
[338337482,1726512647190,-151.0,0.0001998,2]
[338337483,1726512647200,-171.907278,0.0001998,2]
[338337484,1726512647208,-171.907278,0.0001998,2]
[338337485,1726512647218,-151.0,0.0001998,2]
[338337486,1726512647227,-151.0,0.0001998,2]
[338337487,1726512647237,-151.0,0.0001998,2]
[338337488,1726512647247,-151.0,0.0001998,2]
[338337489,1726512647459,-154.036989,0.0001998,2]
[338337490,1726512647469,-1253.935718,0.0001998,2]
[338337491,1726512647479,-151.0,0.0001998,2]
[338337492,1726512647488,-1253.935718,0.0001998,2]
[338337493,1726512647497,-151.0,0.0001998,2]
[338337494,1726512647506,-151.0,0.0001998,2]
[338337495,1726512647516,-151.0,0.0001998,2]
[338337496,1726512647525,-151.0,0.0001998,2]
[338337497,1726512647534,-151.0,0.0001998,2]
[338337498,1726512647543,-151.0,0.0001998,2]
[338337499,1726512647553,-151.0,0.0001998,2]
[338337500,1726512647562,-12585.44097529,0.0001999,2]
[338337501,1726512647616,-548.53406688,0.0001999,2]
[338337502,1726512647628,-613.5885,0.0001999,2]
[338337534,1726513200564,715.0,0.00012,60]
[338337535,1726513210122,210.769618,0.00013699,2]
[338337540,1726513627208,-300.0,0.00017263,2]
[338337541,1726513627232,-511.15186136,0.00017264,2]
[338337542,1726513635467,-449.12339911,0.00017264,2]
[338337544,1726513753234,-300.0,0.00017263,2]
[338337545,1726513753258,-593.5161626,0.00017264,2]
[338337578,1726513832065,-300.0,0.00017263,2]
[338337580,1726513832075,-4221.45537946,0.00017264,2]
[338337582,1726513832087,-1175.58959362,0.00017264,2]
[338337586,1726513832114,-17949.16360385,0.00017264,2]
[338337589,1726513832124,-161.28919038,0.00017373,2]
[338337591,1726513832133,-168.5902036,0.00017473,2]
[338337593,1726513832142,-161.28919037,0.0001754,2]
[338337596,1726513832152,-161.28919037,0.00017707,2]
[338337600,1726513832161,-161.28919037,0.00017874,2]
[338337603,1726513832171,-161.28919037,0.00018042,2]
[338337605,1726513832181,-161.28919037,0.00018209,2]
[338337607,1726513832191,-161.28919037,0.00018376,2]
[338337609,1726513832202,-161.28919037,0.00018543,2]
[338337611,1726513832211,-161.28919037,0.0001871,2]
[338337613,1726513832221,-3000.0,0.000188,2]
[338337615,1726513832230,-998.90631029,0.00018805,2]
[338337617,1726513832239,-150.0,0.00018806,2]
[338337619,1726513832249,-524.0,0.00018806,2]
[338337621,1726513832259,-239.0,0.00018806,2]
[338337623,1726513832268,-3000.0,0.0001881,2]
[338337625,1726513832278,-3000.0,0.0001882,2]
[338337627,1726513832288,-3000.0,0.0001883,2]
[338337629,1726513832297,-3000.0,0.0001884,2]
[338337631,1726513832308,-3000.0,0.0001885,2]
[338337633,1726513832318,-2651.56382273,0.00018858,2]
[338337635,1726513832327,-3000.0,0.0001886,2]
[338337637,1726513832338,-210.84545312,0.0001886,2]
[338337640,1726513832348,-3000.0,0.0001887,2]
[338337642,1726513832358,-3000.0,0.0001888,2]
[338337644,1726513832368,-3000.0,0.0001889,2]
[338337646,1726513832377,-3000.0,0.000189,2]
[338337648,1726513832386,-1004.3524922,0.00018905,2]
[338337650,1726513832395,-3000.0,0.0001891,2]
[338337652,1726513832404,-1000.0,0.00018917,2]
[338337654,1726513832414,-233.18190538,0.00018919,2]
[338337656,1726513832423,-2363.20817914,0.00018919,2]
[338337658,1726513832432,-273.04636843,0.00018919,2]
[338337660,1726513832443,-2363.20817914,0.00018919,2]
[338337662,1726513832452,-2363.20817914,0.00018919,2]
[338337664,1726513832462,-2363.20817914,0.00018919,2]
[338337666,1726513832471,-2363.20817914,0.00018919,2]
[338337668,1726513832481,-2363.20817914,0.00018919,2]
[338337670,1726513832490,-2363.20817914,0.00018919,2]
[338337672,1726513832500,-2363.20817914,0.00018919,2]
[338337674,1726513832509,-2363.20817914,0.00018919,2]
[338337676,1726513832518,-2363.20817914,0.00018919,2]
[338337678,1726513832527,-2363.20817914,0.00018919,2]
[338337680,1726513832537,-2363.20817914,0.00018919,2]
[338337682,1726513832546,-2363.20817914,0.00018919,2]
[338337684,1726513832558,-2363.20817914,0.00018919,2]
[338337686,1726513832568,-2363.20817914,0.00018919,2]
[338337688,1726513832578,-2363.20817914,0.00018919,2]
[338337690,1726513832587,-778.56967647,0.00018919,2]
[338337692,1726513832598,-778.56967647,0.00018919,2]
[338337694,1726513832607,-778.56967647,0.00018919,2]
[338337696,1726513832617,-778.56967647,0.00018919,2]
[338337699,1726513832628,-778.56967647,0.00018919,2]
[338337701,1726513832638,-778.56967647,0.00018919,2]
[338337703,1726513832649,-778.56967647,0.00018919,2]
[338337705,1726513832659,-778.56967647,0.00018919,2]
[338337707,1726513832669,-778.56967647,0.00018919,2]
[338337709,1726513832679,-778.56967647,0.00018919,2]
[338337711,1726513832689,-778.56967647,0.00018919,2]
[338337713,1726513832698,-778.56967647,0.00018919,2]
[338337715,1726513832708,-778.56967647,0.00018919,2]
[338337717,1726513832718,-778.56967647,0.00018919,2]
[338337719,1726513832730,-778.56967647,0.00018919,2]
[338337721,1726513832739,-778.56967647,0.00018919,2]
[338337723,1726513832749,-778.56967647,0.00018919,2]
[338337725,1726513832759,-778.56967647,0.00018919,2]
[338337727,1726513832770,-778.56967647,0.00018919,2]
[338337729,1726513832780,-778.56967647,0.00018919,2]
[338337731,1726513832792,-778.56967647,0.00018919,2]
[338337733,1726513832802,-778.56967647,0.00018919,2]
[338337735,1726513832813,-778.56967647,0.00018919,2]
[338337737,1726513832823,-778.56967647,0.00018919,2]
[338337739,1726513832833,-778.56967647,0.00018919,2]
[338337742,1726513832844,-778.56967647,0.00018919,2]
[338337744,1726513832854,-778.56967647,0.00018919,2]
[338337746,1726513832865,-778.56967647,0.00018919,2]
[338337748,1726513832875,-778.56967647,0.00018919,2]
[338337750,1726513832884,-778.56967647,0.00018919,2]
[338337752,1726513832895,-778.56967647,0.00018919,2]
[338337754,1726513832905,-778.56967647,0.00018919,2]
[338337756,1726513832915,-778.56967647,0.00018919,2]
[338337758,1726513832925,-778.56967647,0.00018919,2]
[338337760,1726513832935,-778.56967647,0.00018919,2]
[338337762,1726513832945,-778.56967647,0.00018919,2]
[338337764,1726513832956,-778.56967647,0.00018919,2]
[338337766,1726513832966,-777.54524269,0.00018919,2]
[338337768,1726513832975,-777.54524269,0.00018919,2]
[338337770,1726513832985,-777.54524269,0.00018919,2]
[338337772,1726513832995,-777.54524269,0.00018919,2]
[338337774,1726513833004,-777.54524269,0.00018919,2]
[338337776,1726513833013,-777.54524269,0.00018919,2]
[338337778,1726513833023,-777.54524269,0.00018919,2]
[338337780,1726513833033,-777.54524269,0.00018919,2]
[338337782,1726513833043,-777.54524269,0.00018919,2]
[338337784,1726513833052,-777.54524269,0.00018919,2]
[338337786,1726513833062,-777.54524269,0.00018919,2]
[338337788,1726513833072,-777.54524269,0.00018919,2]
[338337790,1726513833082,-777.54524269,0.00018919,2]
[338337792,1726513833092,-777.54524269,0.00018919,2]
[338337794,1726513833101,-777.54524269,0.00018919,2]
[338337796,1726513833113,-777.54524269,0.00018919,2]
[338337798,1726513833123,-777.54524269,0.00018919,2]
[338337800,1726513833135,-777.54524269,0.00018919,2]
[338337802,1726513833145,-777.54524269,0.00018919,2]
[338337804,1726513833155,-777.54524269,0.00018919,2]
[338337806,1726513833164,-777.54524269,0.00018919,2]
[338337808,1726513833174,-777.54524269,0.00018919,2]
[338337811,1726513833186,-777.54524269,0.00018919,2]
[338337813,1726513833196,-777.54524269,0.00018919,2]
[338337815,1726513833206,-777.54524269,0.00018919,2]
[338337817,1726513833215,-777.54524269,0.00018919,2]
[338337819,1726513833225,-777.54524269,0.00018919,2]
[338337821,1726513833234,-769.76979027,0.00018919,2]
[338337823,1726513833244,-769.76979027,0.00018919,2]
[338337825,1726513833253,-769.76979027,0.00018919,2]
[338337827,1726513833264,-769.76979027,0.00018919,2]
[338337829,1726513833273,-769.76979027,0.00018919,2]
[338337831,1726513833283,-769.76979027,0.00018919,2]
[338337833,1726513833292,-769.76979027,0.00018919,2]
[338337835,1726513833302,-769.76979027,0.00018919,2]
[338337837,1726513833322,-769.76979027,0.00018919,2]
[338337839,1726513833331,-769.76979027,0.00018919,2]
[338337841,1726513833341,-855.29976694,0.00018919,2]
[338337843,1726513833351,-3000.0,0.0001892,2]
[338337845,1726513833360,-95648.0952149,0.0001892,3]
[338337847,1726513833370,-59748.9357293,0.0001892,3]
[338337849,1726513833380,-3000.0,0.0001893,2]
[338337851,1726513833389,-3000.0,0.0001894,2]
[338337853,1726513833399,-500.0,0.00018947,2]
[338337855,1726513833409,-595.65077554,0.00018947,2]
[338337857,1726513833419,-500.0,0.00018947,2]
[338337859,1726513833429,-500.0,0.00018947,2]
[338337878,1726513833604,-500.0,0.00018947,2]
[338337880,1726513833615,-500.0,0.00018947,2]
[338337882,1726513833625,-500.0,0.00018947,2]
[338337884,1726513833635,-500.0,0.00018947,2]
[338337886,1726513833645,-500.0,0.00018947,2]
[338337888,1726513833655,-241.68614596,0.00018947,2]
[338337889,1726513833665,-500.0,0.00018947,2]
[338337891,1726513833675,-500.0,0.00018947,2]
[338337893,1726513833685,-500.0,0.00018947,2]
[338337895,1726513833696,-500.0,0.00018947,2]
[338337898,1726513833706,-591.20140656,0.00018947,2]
[338337899,1726513833717,-500.0,0.00018947,2]
[338337901,1726513833732,-500.0,0.00018947,2]
[338337903,1726513833741,-170.29478797,0.00018947,2]
[338337905,1726513833751,-500.0,0.00018947,2]
[338337907,1726513833762,-500.0,0.00018947,2]
[338337909,1726513833771,-500.0,0.00018947,2]
[338337911,1726513833781,-500.0,0.00018947,2]
[338337913,1726513833791,-500.0,0.00018947,2]
[338337915,1726513833803,-500.0,0.00018947,2]
[338337917,1726513833815,-500.0,0.00018947,2]
[338337919,1726513833824,-500.0,0.00018947,2]
[338337921,1726513833834,-500.0,0.00018947,2]
[338337923,1726513833844,-500.0,0.00018947,2]
[338337925,1726513833853,-500.0,0.00018947,2]
[338337927,1726513833862,-496.33936113,0.00018947,2]
[338337929,1726513833872,-500.0,0.00018947,2]
[338337931,1726513833882,-500.0,0.00018947,2]
[338337933,1726513833892,-500.0,0.00018947,2]
[338337935,1726513833902,-500.0,0.00018947,2]
[338337937,1726513833916,-500.0,0.00018947,2]
[338337939,1726513833926,-500.0,0.00018947,2]
[338337941,1726513833935,-500.0,0.00018947,2]
[338337943,1726513833945,-500.0,0.00018947,2]
[338337945,1726513833954,-379.46994864,0.00018947,2]
[338337947,1726513833964,-500.0,0.00018947,2]
[338337949,1726513833973,-664.29578128,0.00018947,2]
[338337950,1726513833983,-664.29578128,0.00018947,2]
[338337952,1726513833992,-664.29578128,0.00018947,2]
[338337954,1726513834001,-664.29578128,0.00018947,2]
[338337956,1726513834012,-664.29578128,0.00018947,2]
[338337958,1726513834021,-664.29578128,0.00018947,2]
[338337960,1726513834031,-664.29578128,0.00018947,2]
[338337963,1726513834043,-664.29578128,0.00018947,2]
[338337965,1726513834054,-686.43897399,0.00018947,2]
[338337967,1726513834066,-686.43897399,0.00018947,2]
[338337969,1726513834075,-686.43897399,0.00018947,2]
[338337970,1726513834086,-191296.19043,0.00018948,3]
[338337972,1726513834095,-119497.871459,0.00018948,3]
[338337974,1726513834104,-235.86774903,0.00018948,2]
[338337976,1726513834115,-3000.0,0.0001895,2]
[338337978,1726513834124,-4347.5406596,0.00018954,2]
[338337980,1726513834133,-3000.0,0.0001896,2]
[338337982,1726513834143,-3000.0,0.0001897,2]
[338337984,1726513834152,-3000.0,0.0001898,2]
[338337986,1726513834162,-420.0,0.00018989,2]
[338337988,1726513834171,-3000.0,0.0001899,2]
[338337990,1726513834181,-500.0,0.00018996,2]
[338337992,1726513834190,-95648.0952149,0.00018996,3]
[338337994,1726513834200,-59748.9357293,0.00018996,3]
[338337997,1726513834210,-1000.0,0.00019,19]
[338337999,1726513834220,-3000.0,0.00019,2]
[338338001,1726513834229,-3000.0,0.0001901,2]
[338338003,1726513834238,-3000.0,0.0001902,2]
[338338005,1726513834247,-150.0,0.00019023,2]
[338338007,1726513834258,-3000.0,0.0001903,2]
[338338009,1726513834267,-3000.0,0.0001904,2]
[338338011,1726513834277,-3000.0,0.0001905,2]
[338338013,1726513834286,-3000.0,0.0001906,2]
[338338014,1726513834296,-3000.0,0.0001907,2]
[338338016,1726513834306,-3000.0,0.0001908,2]
[338338018,1726513834315,-59748.9357293,0.0001908,3]
[338338020,1726513834329,-3000.0,0.0001909,2]
[338338022,1726513834338,-3000.0,0.000191,2]
[338338024,1726513834348,-3000.0,0.0001911,2]
[338338026,1726513834357,-210.84545309,0.00019113,2]
[338338028,1726513834367,-3000.0,0.0001912,2]
[338338029,1726513834377,-3000.0,0.0001913,2]
[338338030,1726513834387,-151.0,0.0001913,2]
[338338031,1726513834396,-3411.88513,0.0001913,2]
[338338032,1726513834405,-3411.88513,0.0001913,2]
[338338033,1726513834415,-3000.0,0.0001914,2]
[338338034,1726513834424,-3000.0,0.0001915,2]
[338338035,1726513834434,-3000.0,0.0001916,2]
[338338036,1726513834443,-46367.82944917,0.0001916,5]
[338338037,1726513834453,-59748.9357293,0.0001916,3]
[338338038,1726513834462,-151.0,0.00019168,2]
[338338039,1726513834472,-151.0,0.00019168,2]
[338338040,1726513834482,-151.0,0.00019168,2]